{"text_format":"3","workbook":"xlsx","n_sheets":4,"sheets":["Qualifikationsbedarf","tätigkeitsbezogen","mitarbeiterbezogen","Legende"],"not_rendered":{"images":1,"defined_names":6},"read":"whole","date_system":"1900"}

{"sheet":"Qualifikationsbedarf","index":0,"n_rows":17,"n_cols":16,"rows_kept":17,"merged":[[0,1,0,15],[3,1,3,5],[3,6,3,10],[3,11,3,15]]}
["Organisationseinheit:",{"$f":"tätigkeitsbezogen!B1","v":0}]
[]
[null,"Promotion","Master","Bachelor","Ausbildung","Zusatzqualifikation (z. B. Lehrgang)","Allgemein","Bildschirmarbeitsplatz","Umgang mit …","Arbeitsverfahren …","Persönliche Schutzausrüstung","Bildschirmgeräte","Fahr-, Steuer-, Überwachungstätigkeit"," "," "," "]
["tätigkeitsbezogene Qualifikation","Ausbildung",{"$nulls":4},"Unterweisung",{"$nulls":4},"arbeitsmedizinische Vorsorge"]
[null,{"$f":"IF($A5<>\"\",VLOOKUP($A5,tätigkeitsbezogen!$A$5:$P$23,COLUMN(),FALSE),\"\")","v":""},{"$f":"IF($A5<>\"\",VLOOKUP($A5,tätigkeitsbezogen!$A$5:$P$23,COLUMN(),FALSE),\"\")","v":""},{"$f":"IF($A5<>\"\",VLOOKUP($A5,tätigkeitsbezogen!$A$5:$P$23,COLUMN(),FALSE),\"\")","v":""},{"$f":"IF($A5<>\"\",VLOOKUP($A5,tätigkeitsbezogen!$A$5:$P$23,COLUMN(),FALSE),\"\")","v":""},{"$f":"IF($A5<>\"\",VLOOKUP($A5,tätigkeitsbezogen!$A$5:$P$23,COLUMN(),FALSE),\"\")","v":""},{"$f":"IF($A5<>\"\",VLOOKUP($A5,tätigkeitsbezogen!$A$5:$P$23,COLUMN(),FALSE),\"\")","v":""},{"$f":"IF($A5<>\"\",VLOOKUP($A5,tätigkeitsbezogen!$A$5:$P$23,COLUMN(),FALSE),\"\")","v":""},{"$f":"IF($A5<>\"\",VLOOKUP($A5,tätigkeitsbezogen!$A$5:$P$23,COLUMN(),FALSE),\"\")","v":""},{"$f":"IF($A5<>\"\",VLOOKUP($A5,tätigkeitsbezogen!$A$5:$P$23,COLUMN(),FALSE),\"\")","v":""},{"$f":"IF($A5<>\"\",VLOOKUP($A5,tätigkeitsbezogen!$A$5:$P$23,COLUMN(),FALSE),\"\")","v":""},{"$f":"IF($A5<>\"\",VLOOKUP($A5,tätigkeitsbezogen!$A$5:$P$23,COLUMN(),FALSE),\"\")","v":""},{"$f":"IF($A5<>\"\",VLOOKUP($A5,tätigkeitsbezogen!$A$5:$P$23,COLUMN(),FALSE),\"\")","v":""},{"$f":"IF($A5<>\"\",VLOOKUP($A5,tätigkeitsbezogen!$A$5:$P$23,COLUMN(),FALSE),\"\")","v":""},{"$f":"IF($A5<>\"\",VLOOKUP($A5,tätigkeitsbezogen!$A$5:$P$23,COLUMN(),FALSE),\"\")","v":""},{"$f":"IF($A5<>\"\",VLOOKUP($A5,tätigkeitsbezogen!$A$5:$P$23,COLUMN(),FALSE),\"\")","v":""}]
[null,{"$f":"IF($A6<>\"\",VLOOKUP($A6,tätigkeitsbezogen!$A$5:$P$23,COLUMN(),FALSE),\"\")","v":""},{"$f":"IF($A6<>\"\",VLOOKUP($A6,tätigkeitsbezogen!$A$5:$P$23,COLUMN(),FALSE),\"\")","v":""},{"$f":"IF($A6<>\"\",VLOOKUP($A6,tätigkeitsbezogen!$A$5:$P$23,COLUMN(),FALSE),\"\")","v":""},{"$f":"IF($A6<>\"\",VLOOKUP($A6,tätigkeitsbezogen!$A$5:$P$23,COLUMN(),FALSE),\"\")","v":""},{"$f":"IF($A6<>\"\",VLOOKUP($A6,tätigkeitsbezogen!$A$5:$P$23,COLUMN(),FALSE),\"\")","v":""},{"$f":"IF($A6<>\"\",VLOOKUP($A6,tätigkeitsbezogen!$A$5:$P$23,COLUMN(),FALSE),\"\")","v":""},{"$f":"IF($A6<>\"\",VLOOKUP($A6,tätigkeitsbezogen!$A$5:$P$23,COLUMN(),FALSE),\"\")","v":""},{"$f":"IF($A6<>\"\",VLOOKUP($A6,tätigkeitsbezogen!$A$5:$P$23,COLUMN(),FALSE),\"\")","v":""},{"$f":"IF($A6<>\"\",VLOOKUP($A6,tätigkeitsbezogen!$A$5:$P$23,COLUMN(),FALSE),\"\")","v":""},{"$f":"IF($A6<>\"\",VLOOKUP($A6,tätigkeitsbezogen!$A$5:$P$23,COLUMN(),FALSE),\"\")","v":""},{"$f":"IF($A6<>\"\",VLOOKUP($A6,tätigkeitsbezogen!$A$5:$P$23,COLUMN(),FALSE),\"\")","v":""},{"$f":"IF($A6<>\"\",VLOOKUP($A6,tätigkeitsbezogen!$A$5:$P$23,COLUMN(),FALSE),\"\")","v":""},{"$f":"IF($A6<>\"\",VLOOKUP($A6,tätigkeitsbezogen!$A$5:$P$23,COLUMN(),FALSE),\"\")","v":""},{"$f":"IF($A6<>\"\",VLOOKUP($A6,tätigkeitsbezogen!$A$5:$P$23,COLUMN(),FALSE),\"\")","v":""},{"$f":"IF($A6<>\"\",VLOOKUP($A6,tätigkeitsbezogen!$A$5:$P$23,COLUMN(),FALSE),\"\")","v":""}]
[null,{"$f":"IF($A7<>\"\",VLOOKUP($A7,tätigkeitsbezogen!$A$5:$P$23,COLUMN(),FALSE),\"\")","v":""},{"$f":"IF($A7<>\"\",VLOOKUP($A7,tätigkeitsbezogen!$A$5:$P$23,COLUMN(),FALSE),\"\")","v":""},{"$f":"IF($A7<>\"\",VLOOKUP($A7,tätigkeitsbezogen!$A$5:$P$23,COLUMN(),FALSE),\"\")","v":""},{"$f":"IF($A7<>\"\",VLOOKUP($A7,tätigkeitsbezogen!$A$5:$P$23,COLUMN(),FALSE),\"\")","v":""},{"$f":"IF($A7<>\"\",VLOOKUP($A7,tätigkeitsbezogen!$A$5:$P$23,COLUMN(),FALSE),\"\")","v":""},{"$f":"IF($A7<>\"\",VLOOKUP($A7,tätigkeitsbezogen!$A$5:$P$23,COLUMN(),FALSE),\"\")","v":""},{"$f":"IF($A7<>\"\",VLOOKUP($A7,tätigkeitsbezogen!$A$5:$P$23,COLUMN(),FALSE),\"\")","v":""},{"$f":"IF($A7<>\"\",VLOOKUP($A7,tätigkeitsbezogen!$A$5:$P$23,COLUMN(),FALSE),\"\")","v":""},{"$f":"IF($A7<>\"\",VLOOKUP($A7,tätigkeitsbezogen!$A$5:$P$23,COLUMN(),FALSE),\"\")","v":""},{"$f":"IF($A7<>\"\",VLOOKUP($A7,tätigkeitsbezogen!$A$5:$P$23,COLUMN(),FALSE),\"\")","v":""},{"$f":"IF($A7<>\"\",VLOOKUP($A7,tätigkeitsbezogen!$A$5:$P$23,COLUMN(),FALSE),\"\")","v":""},{"$f":"IF($A7<>\"\",VLOOKUP($A7,tätigkeitsbezogen!$A$5:$P$23,COLUMN(),FALSE),\"\")","v":""},{"$f":"IF($A7<>\"\",VLOOKUP($A7,tätigkeitsbezogen!$A$5:$P$23,COLUMN(),FALSE),\"\")","v":""},{"$f":"IF($A7<>\"\",VLOOKUP($A7,tätigkeitsbezogen!$A$5:$P$23,COLUMN(),FALSE),\"\")","v":""},{"$f":"IF($A7<>\"\",VLOOKUP($A7,tätigkeitsbezogen!$A$5:$P$23,COLUMN(),FALSE),\"\")","v":""}]
[null,{"$f":"IF($A8<>\"\",VLOOKUP($A8,tätigkeitsbezogen!$A$5:$P$23,COLUMN(),FALSE),\"\")","v":""},{"$f":"IF($A8<>\"\",VLOOKUP($A8,tätigkeitsbezogen!$A$5:$P$23,COLUMN(),FALSE),\"\")","v":""},{"$f":"IF($A8<>\"\",VLOOKUP($A8,tätigkeitsbezogen!$A$5:$P$23,COLUMN(),FALSE),\"\")","v":""},{"$f":"IF($A8<>\"\",VLOOKUP($A8,tätigkeitsbezogen!$A$5:$P$23,COLUMN(),FALSE),\"\")","v":""},{"$f":"IF($A8<>\"\",VLOOKUP($A8,tätigkeitsbezogen!$A$5:$P$23,COLUMN(),FALSE),\"\")","v":""},{"$f":"IF($A8<>\"\",VLOOKUP($A8,tätigkeitsbezogen!$A$5:$P$23,COLUMN(),FALSE),\"\")","v":""},{"$f":"IF($A8<>\"\",VLOOKUP($A8,tätigkeitsbezogen!$A$5:$P$23,COLUMN(),FALSE),\"\")","v":""},{"$f":"IF($A8<>\"\",VLOOKUP($A8,tätigkeitsbezogen!$A$5:$P$23,COLUMN(),FALSE),\"\")","v":""},{"$f":"IF($A8<>\"\",VLOOKUP($A8,tätigkeitsbezogen!$A$5:$P$23,COLUMN(),FALSE),\"\")","v":""},{"$f":"IF($A8<>\"\",VLOOKUP($A8,tätigkeitsbezogen!$A$5:$P$23,COLUMN(),FALSE),\"\")","v":""},{"$f":"IF($A8<>\"\",VLOOKUP($A8,tätigkeitsbezogen!$A$5:$P$23,COLUMN(),FALSE),\"\")","v":""},{"$f":"IF($A8<>\"\",VLOOKUP($A8,tätigkeitsbezogen!$A$5:$P$23,COLUMN(),FALSE),\"\")","v":""},{"$f":"IF($A8<>\"\",VLOOKUP($A8,tätigkeitsbezogen!$A$5:$P$23,COLUMN(),FALSE),\"\")","v":""},{"$f":"IF($A8<>\"\",VLOOKUP($A8,tätigkeitsbezogen!$A$5:$P$23,COLUMN(),FALSE),\"\")","v":""},{"$f":"IF($A8<>\"\",VLOOKUP($A8,tätigkeitsbezogen!$A$5:$P$23,COLUMN(),FALSE),\"\")","v":""}]
[null,{"$f":"IF($A9<>\"\",VLOOKUP($A9,tätigkeitsbezogen!$A$5:$P$23,COLUMN(),FALSE),\"\")","v":""},{"$f":"IF($A9<>\"\",VLOOKUP($A9,tätigkeitsbezogen!$A$5:$P$23,COLUMN(),FALSE),\"\")","v":""},{"$f":"IF($A9<>\"\",VLOOKUP($A9,tätigkeitsbezogen!$A$5:$P$23,COLUMN(),FALSE),\"\")","v":""},{"$f":"IF($A9<>\"\",VLOOKUP($A9,tätigkeitsbezogen!$A$5:$P$23,COLUMN(),FALSE),\"\")","v":""},{"$f":"IF($A9<>\"\",VLOOKUP($A9,tätigkeitsbezogen!$A$5:$P$23,COLUMN(),FALSE),\"\")","v":""},{"$f":"IF($A9<>\"\",VLOOKUP($A9,tätigkeitsbezogen!$A$5:$P$23,COLUMN(),FALSE),\"\")","v":""},{"$f":"IF($A9<>\"\",VLOOKUP($A9,tätigkeitsbezogen!$A$5:$P$23,COLUMN(),FALSE),\"\")","v":""},{"$f":"IF($A9<>\"\",VLOOKUP($A9,tätigkeitsbezogen!$A$5:$P$23,COLUMN(),FALSE),\"\")","v":""},{"$f":"IF($A9<>\"\",VLOOKUP($A9,tätigkeitsbezogen!$A$5:$P$23,COLUMN(),FALSE),\"\")","v":""},{"$f":"IF($A9<>\"\",VLOOKUP($A9,tätigkeitsbezogen!$A$5:$P$23,COLUMN(),FALSE),\"\")","v":""},{"$f":"IF($A9<>\"\",VLOOKUP($A9,tätigkeitsbezogen!$A$5:$P$23,COLUMN(),FALSE),\"\")","v":""},{"$f":"IF($A9<>\"\",VLOOKUP($A9,tätigkeitsbezogen!$A$5:$P$23,COLUMN(),FALSE),\"\")","v":""},{"$f":"IF($A9<>\"\",VLOOKUP($A9,tätigkeitsbezogen!$A$5:$P$23,COLUMN(),FALSE),\"\")","v":""},{"$f":"IF($A9<>\"\",VLOOKUP($A9,tätigkeitsbezogen!$A$5:$P$23,COLUMN(),FALSE),\"\")","v":""},{"$f":"IF($A9<>\"\",VLOOKUP($A9,tätigkeitsbezogen!$A$5:$P$23,COLUMN(),FALSE),\"\")","v":""}]
[null,{"$f":"IF($A10<>\"\",VLOOKUP($A10,tätigkeitsbezogen!$A$5:$P$23,COLUMN(),FALSE),\"\")","v":""},{"$f":"IF($A10<>\"\",VLOOKUP($A10,tätigkeitsbezogen!$A$5:$P$23,COLUMN(),FALSE),\"\")","v":""},{"$f":"IF($A10<>\"\",VLOOKUP($A10,tätigkeitsbezogen!$A$5:$P$23,COLUMN(),FALSE),\"\")","v":""},{"$f":"IF($A10<>\"\",VLOOKUP($A10,tätigkeitsbezogen!$A$5:$P$23,COLUMN(),FALSE),\"\")","v":""},{"$f":"IF($A10<>\"\",VLOOKUP($A10,tätigkeitsbezogen!$A$5:$P$23,COLUMN(),FALSE),\"\")","v":""},{"$f":"IF($A10<>\"\",VLOOKUP($A10,tätigkeitsbezogen!$A$5:$P$23,COLUMN(),FALSE),\"\")","v":""},{"$f":"IF($A10<>\"\",VLOOKUP($A10,tätigkeitsbezogen!$A$5:$P$23,COLUMN(),FALSE),\"\")","v":""},{"$f":"IF($A10<>\"\",VLOOKUP($A10,tätigkeitsbezogen!$A$5:$P$23,COLUMN(),FALSE),\"\")","v":""},{"$f":"IF($A10<>\"\",VLOOKUP($A10,tätigkeitsbezogen!$A$5:$P$23,COLUMN(),FALSE),\"\")","v":""},{"$f":"IF($A10<>\"\",VLOOKUP($A10,tätigkeitsbezogen!$A$5:$P$23,COLUMN(),FALSE),\"\")","v":""},{"$f":"IF($A10<>\"\",VLOOKUP($A10,tätigkeitsbezogen!$A$5:$P$23,COLUMN(),FALSE),\"\")","v":""},{"$f":"IF($A10<>\"\",VLOOKUP($A10,tätigkeitsbezogen!$A$5:$P$23,COLUMN(),FALSE),\"\")","v":""},{"$f":"IF($A10<>\"\",VLOOKUP($A10,tätigkeitsbezogen!$A$5:$P$23,COLUMN(),FALSE),\"\")","v":""},{"$f":"IF($A10<>\"\",VLOOKUP($A10,tätigkeitsbezogen!$A$5:$P$23,COLUMN(),FALSE),\"\")","v":""},{"$f":"IF($A10<>\"\",VLOOKUP($A10,tätigkeitsbezogen!$A$5:$P$23,COLUMN(),FALSE),\"\")","v":""}]
[null,{"$f":"IF($A11<>\"\",VLOOKUP($A11,tätigkeitsbezogen!$A$5:$P$23,COLUMN(),FALSE),\"\")","v":""},{"$f":"IF($A11<>\"\",VLOOKUP($A11,tätigkeitsbezogen!$A$5:$P$23,COLUMN(),FALSE),\"\")","v":""},{"$f":"IF($A11<>\"\",VLOOKUP($A11,tätigkeitsbezogen!$A$5:$P$23,COLUMN(),FALSE),\"\")","v":""},{"$f":"IF($A11<>\"\",VLOOKUP($A11,tätigkeitsbezogen!$A$5:$P$23,COLUMN(),FALSE),\"\")","v":""},{"$f":"IF($A11<>\"\",VLOOKUP($A11,tätigkeitsbezogen!$A$5:$P$23,COLUMN(),FALSE),\"\")","v":""},{"$f":"IF($A11<>\"\",VLOOKUP($A11,tätigkeitsbezogen!$A$5:$P$23,COLUMN(),FALSE),\"\")","v":""},{"$f":"IF($A11<>\"\",VLOOKUP($A11,tätigkeitsbezogen!$A$5:$P$23,COLUMN(),FALSE),\"\")","v":""},{"$f":"IF($A11<>\"\",VLOOKUP($A11,tätigkeitsbezogen!$A$5:$P$23,COLUMN(),FALSE),\"\")","v":""},{"$f":"IF($A11<>\"\",VLOOKUP($A11,tätigkeitsbezogen!$A$5:$P$23,COLUMN(),FALSE),\"\")","v":""},{"$f":"IF($A11<>\"\",VLOOKUP($A11,tätigkeitsbezogen!$A$5:$P$23,COLUMN(),FALSE),\"\")","v":""},{"$f":"IF($A11<>\"\",VLOOKUP($A11,tätigkeitsbezogen!$A$5:$P$23,COLUMN(),FALSE),\"\")","v":""},{"$f":"IF($A11<>\"\",VLOOKUP($A11,tätigkeitsbezogen!$A$5:$P$23,COLUMN(),FALSE),\"\")","v":""},{"$f":"IF($A11<>\"\",VLOOKUP($A11,tätigkeitsbezogen!$A$5:$P$23,COLUMN(),FALSE),\"\")","v":""},{"$f":"IF($A11<>\"\",VLOOKUP($A11,tätigkeitsbezogen!$A$5:$P$23,COLUMN(),FALSE),\"\")","v":""},{"$f":"IF($A11<>\"\",VLOOKUP($A11,tätigkeitsbezogen!$A$5:$P$23,COLUMN(),FALSE),\"\")","v":""}]
[]
["mitarbeiterbezogene Qualkifikation"]
[null,{"$f":"IF($A14<>\"\",VLOOKUP($A14,mitarbeiterbezogen!$A$5:$P$23,COLUMN(),FALSE),\"\")","v":""},{"$f":"IF($A14<>\"\",VLOOKUP($A14,mitarbeiterbezogen!$A$5:$P$23,COLUMN(),FALSE),\"\")","v":""},{"$f":"IF($A14<>\"\",VLOOKUP($A14,mitarbeiterbezogen!$A$5:$P$23,COLUMN(),FALSE),\"\")","v":""},{"$f":"IF($A14<>\"\",VLOOKUP($A14,mitarbeiterbezogen!$A$5:$P$23,COLUMN(),FALSE),\"\")","v":""},{"$f":"IF($A14<>\"\",VLOOKUP($A14,mitarbeiterbezogen!$A$5:$P$23,COLUMN(),FALSE),\"\")","v":""},{"$f":"IF($A14<>\"\",VLOOKUP($A14,mitarbeiterbezogen!$A$5:$P$23,COLUMN(),FALSE),\"\")","v":""},{"$f":"IF($A14<>\"\",VLOOKUP($A14,mitarbeiterbezogen!$A$5:$P$23,COLUMN(),FALSE),\"\")","v":""},{"$f":"IF($A14<>\"\",VLOOKUP($A14,mitarbeiterbezogen!$A$5:$P$23,COLUMN(),FALSE),\"\")","v":""},{"$f":"IF($A14<>\"\",VLOOKUP($A14,mitarbeiterbezogen!$A$5:$P$23,COLUMN(),FALSE),\"\")","v":""},{"$f":"IF($A14<>\"\",VLOOKUP($A14,mitarbeiterbezogen!$A$5:$P$23,COLUMN(),FALSE),\"\")","v":""},{"$f":"IF($A14<>\"\",VLOOKUP($A14,mitarbeiterbezogen!$A$5:$P$23,COLUMN(),FALSE),\"\")","v":""},{"$f":"IF($A14<>\"\",VLOOKUP($A14,mitarbeiterbezogen!$A$5:$P$23,COLUMN(),FALSE),\"\")","v":""},{"$f":"IF($A14<>\"\",VLOOKUP($A14,mitarbeiterbezogen!$A$5:$P$23,COLUMN(),FALSE),\"\")","v":""},{"$f":"IF($A14<>\"\",VLOOKUP($A14,mitarbeiterbezogen!$A$5:$P$23,COLUMN(),FALSE),\"\")","v":""},{"$f":"IF($A14<>\"\",VLOOKUP($A14,mitarbeiterbezogen!$A$5:$P$23,COLUMN(),FALSE),\"\")","v":""}]
[]
["zusätzlicher Qualifikationsbedarf"]
[{"$f":"IF(A14<>\"\",A14,\"\")","v":""},{"$f":"IF(B14=\"X\",\"-\",IF(COUNTIF(B5:B12,\"X\")>=1,\"X\",\"-\"))","v":"-"},"-","-","-","-","-","-","-","-","-",{"$f":"IF(L14=\"E\",\"-\",IF(COUNTIF(L5:L12,\"E\")>=1,\"E\",IF(L14=\"P\",\"-\",IF(COUNTIF(L5:L12,\"P\")>=1,\"P\",IF(L14=\"A\",\"-\",IF(COUNTIF(L5:L12,\"A\")>=1,\"A\",IF(L14=\"W\",\"-\",IF(COUNTIF(L5:L12,\"W\")>=1,\"W\",\"-\"))))))))","v":"-"},{"$f":"IF(M14=\"E\",\"-\",IF(COUNTIF(M5:M12,\"E\")>=1,\"E\",IF(M14=\"P\",\"-\",IF(COUNTIF(M5:M12,\"P\")>=1,\"P\",IF(M14=\"A\",\"-\",IF(COUNTIF(M5:M12,\"A\")>=1,\"A\",IF(M14=\"W\",\"-\",IF(COUNTIF(M5:M12,\"W\")>=1,\"W\",\"-\"))))))))","v":"-"},{"$f":"IF(N14=\"E\",\"-\",IF(COUNTIF(N5:N12,\"E\")>=1,\"E\",IF(N14=\"P\",\"-\",IF(COUNTIF(N5:N12,\"P\")>=1,\"P\",IF(N14=\"A\",\"-\",IF(COUNTIF(N5:N12,\"A\")>=1,\"A\",IF(N14=\"W\",\"-\",IF(COUNTIF(N5:N12,\"W\")>=1,\"W\",\"-\"))))))))","v":"-"},{"$f":"IF(O14=\"E\",\"-\",IF(COUNTIF(O5:O12,\"E\")>=1,\"E\",IF(O14=\"P\",\"-\",IF(COUNTIF(O5:O12,\"P\")>=1,\"P\",IF(O14=\"A\",\"-\",IF(COUNTIF(O5:O12,\"A\")>=1,\"A\",IF(O14=\"W\",\"-\",IF(COUNTIF(O5:O12,\"W\")>=1,\"W\",\"-\"))))))))","v":"-"},{"$f":"IF(P14=\"E\",\"-\",IF(COUNTIF(P5:P12,\"E\")>=1,\"E\",IF(P14=\"P\",\"-\",IF(COUNTIF(P5:P12,\"P\")>=1,\"P\",IF(P14=\"A\",\"-\",IF(COUNTIF(P5:P12,\"A\")>=1,\"A\",IF(P14=\"W\",\"-\",IF(COUNTIF(P5:P12,\"W\")>=1,\"W\",\"-\"))))))))","v":"-"}]

{"sheet":"tätigkeitsbezogen","index":1,"n_rows":4,"n_cols":18,"rows_kept":4,"merged":[[0,1,0,15],[3,1,3,5],[3,6,3,10],[3,11,3,15]]}
["Organisationseinheit:"]
[]
[null,"Promotion","Master","Bachelor","Ausbildung","Zusatzqualifikation","Allgemein","Bildschirmarbeitsplatz","Umgang mit …","Arbeitsverfahren …","Persönliche Schutzausrüstung","Bildschirmgeräte","Fahr-, Steuer-, Überwachungstätigkeit"," "," "," "]
["Tätigkeit","Ausbildung",{"$nulls":4},"Unterweisung",{"$nulls":4},"arbeitsmedizinische Vorsorge",{"$nulls":5}," "]

{"sheet":"mitarbeiterbezogen","index":2,"n_rows":4,"n_cols":18,"rows_kept":4,"merged":[[0,1,0,15],[3,1,3,5],[3,6,3,10],[3,11,3,15]]}
["Organisationseinheit:",{"$f":"tätigkeitsbezogen!B1","v":0}]
[]
[null,"Promotion","Master","Bachelor","Ausbildung","Zusatzqualifikation","Allgemein","Bildschirmarbeitsplatz","Umgang mit …","Arbeitsverfahren …","Persönliche Schutzausrüstung","Bildschirmgeräte","Fahr-, Steuer-, Überwachungstätigkeit"," "," "," "]
["Mitarbeiter","Ausbildung",{"$nulls":4},"Unterweisung",{"$nulls":4},"arbeitsmedizinische Vorsorge",{"$nulls":5}," "]

{"sheet":"Legende","index":3,"n_rows":15,"n_cols":2,"rows_kept":15,"merged":[[7,0,7,2],[8,0,8,2],[9,0,9,2],[10,0,10,2],[11,0,11,2],[12,0,12,2],[13,0,13,2],[14,0,14,2]]}
["X","erforderlich"]
["-","nicht erforderlich"]
["E","Eignungsuntersuchung"]
["P","Pflichtvorsorge"]
["A","Angebotsvorsorge"]
["W","Wunschvorsorge"]
[]
["Anwendungshinweise:"]
["Die Organisationseinheit muss nur einmal auf dem Tabellenblatt \"tätigkeitsbezogen\" eingetragen werden und wird dann auf alle anderen Tabellenblätter übertragen."]
["Die bereits eingetragenen Qualifikationen dienen als Beispiel und können selbstverständlich überschrieben werden."]
["Alle Felder sollten mit einem der oben angegebenen Kürzel versehen werden. Dies dient der Gegenkontrolle, ob auch keine Qualifikation versehentlich übersehen wurde. Gleichzeitig führt dies zu einer saubereren Darstellung."]
["Es können nur die oben angegebenen Kürzel eingegeben, beziehungsweise durch ein Dropdown-Menü ausgewählt werden. Dabei sind die Bereiche Ausbildung und Unterweisung auf \"X\" und \"-\" beschränkt. Im Bereich der arbeitsmedizinischen Vorsorge können ausschließlich die Kürzel \"-\" bis \"W\" ausgewählt werden. Nur diese werden auch über die Formeln ausgewertet. Die Rangfolge der unterschiedlichen Untersuchungs- und Vorsorgeanlässe entspricht der Reihenfolge von oben nach unten."]
["Es können in allen Bereichen Spalten und Zeilen ergänzt werden. Damit dabei die Formeln und Zellbezüge korrekt übernommen werden, sollte dies nur zwischen bereits bestehenden Zeilen und Spalten erfolgen. Idealerweise durch markieren einer ganzen Spalte oder Zeile und anschließendes Kopieren und Einfügen der kopierten Spalte beziehungsweise Zeile."]
["Mit dem Tabellenblatt \"Qualifikationsbedarf\" kann ermittelt werden, ob für einen bestimmten Mitarbeiter zusätzliche Qualifikationen erforderlich sind. Dazu können im oberen Teil die Tätigkeiten ausgewählt werden, mit denen der Mitarbeiter betraut werden soll. Im zweiten Abschnitt kann der Mitarbeiter ausgewählt werden. Danach wird im dritten Abschnitt ein etwaiger Bedarf an zusätzlichen Qualifikationen dargestellt."]
["Welche Qualifikationen für welche Tätigkeiten erforderlich sind sollte sich aus der Gefährdungsbeurteilung ergeben."]